[Event "GER-ch Youth U14 2019"]
[Site "Willingen"]
[Date "2019.06.14"]
[Round "8.20"]
[White "Gutewort, Paul Emil"]
[Black "Wellssow, Keoki"]
[Result "0-1"]
[ECO "A42"]
[WhiteElo "1708"]
[BlackElo "1509"]
[Annotator "NA"]
[PlyCount "51"]
[EventDate "2019.06.07"]
[EventType "swiss"]
[EventRounds "9"]
[EventCountry "GER"]
[SourceTitle "playchess.com"]
[Source "ChessBase"]
[SourceQuality "1"]
[TimeControl "40/5400+30:1800+30"]

1. d4 {[%emt 0:00:00]} g6 {[%emt 0:00:00]} 2. e4 {[%emt 0:00:00]} Bg7 {[%emt 0:00:09]} 3. c4 {[%emt 0:00:00]} d6 {[%emt 0:00:40]} 4. Nc3 {[%emt 0:00:00]} Nc6 {[%emt 0:01:06]} 5. Nf3 {[%emt 0:00:24]} Bg4 {[%emt 0:01:31]} 6. Be3 {[%emt 0:00:17]} e5 {[%emt 0:08:56]} 7. d5 {[%emt 0:00:05]} Nd4 {[%emt 0:09:47]} 8. Be2 {[%emt 0:00:06]} Nxe2 {[%emt 0:01:38]} 9. Qxe2 {[%emt 0:00:24]} f5 {[%emt 0:07:35]} 10. h3 {[%emt 0:00:45]} Bxf3 {[%emt 0:00:53]} 11. Qxf3 {[%emt 0:00:28]} f4 {[%emt 0:02:21]} 12. Bd2 {[%emt 0:00:08]} Nf6 {[%emt 0:00:41]} 13. Qe2 {[%emt 0:00:54]} Qe7 {[%emt 0:02:57]} 14. b4 {[%emt 0:00:26]} a6 {[%emt 0:05:22]} 15. f3 {[%emt 0:01:34]} O-O {[%emt 0:00:54]} 16. O-O {[%emt 0:00:16]} Nh5 {[%emt 0:01:54]} 17. Be1 {[%emt 0:00:42]} Bf6 {[%emt 0:01:27]} 18. Qd2 {[%emt 0:02:02]} Ng3 {[%emt 0:10:54]} 19. Bxg3 {[%emt 0:00:50]} fxg3 {[%emt 0:00:07]} 20. Ne2 {[%emt 0:00:07]} Bg5 {[%emt 0:02:11]} 21. Qc3 {[%emt 0:00:42]} Bf4 {[%emt 0:02:33]} 22. Nxf4 {[%emt 0:00:35]} exf4 {[%emt 0:01:45]} 23. Rac1 {[%emt 0:00:37]} b6 {[%emt 0:12:33]} 24. c5 {[%emt 0:01:05]} Rac8 {[%emt 0:01:50]} 25. Qd4 {[%emt 0:04:34]} Rb8 {[%emt 0:05:42]} 26. Rc2 {[%emt 0:00:50] normal} 0-1

[Event "GER-ch Youth U14 2019"]
[Site "Willingen"]
[Date "2019.06.14"]
[Round "8.21"]
[White "Rockmann, Enno"]
[Black "Wildermuth, Nikolas Karl"]
[Result "1-0"]
[ECO "E77"]
[WhiteElo "1527"]
[BlackElo "1748"]
[Annotator "NA"]
[PlyCount "57"]
[EventDate "2019.06.07"]
[EventType "swiss"]
[EventRounds "9"]
[EventCountry "GER"]
[SourceTitle "playchess.com"]
[Source "ChessBase"]
[SourceQuality "1"]
[TimeControl "40/5400+30:1800+30"]

1. e4 {[%emt 0:00:00]} d6 {[%emt 0:00:00]} 2. d4 {[%emt 0:00:00]} g6 {[%emt 0:00:00]} 3. c4 {[%emt 0:00:21]} Nf6 {[%emt 0:00:00]} 4. Nc3 {[%emt 0:00:11]} Bg7 {[%emt 0:00:08]} 5. f4 {[%emt 0:01:51]} O-O {[%emt 0:00:16]} 6. Nf3 {[%emt 0:00:04]} c5 {[%emt 0:00:27]} 7. d5 {[%emt 0:01:08]} b5 {[%emt 0:00:31]} 8. cxb5 {[%emt 0:00:37]} Qa5 {[%emt 0:00:41]} 9. Bd2 {[%emt 0:02:28]} a6 {[%emt 0:01:20]} 10. bxa6 {[%emt 0:05:35]} Bxa6 {[%emt 0:02:10]} 11. Na4 {[%emt 0:00:23]} Qc7 {[%emt 0:00:35]} 12. Bxa6 {[%emt 0:00:25]} Rxa6 {[%emt 0:01:25]} 13. Nc3 {[%emt 0:00:18]} Nbd7 {[%emt 0:03:39]} 14. O-O {[%emt 0:00:41]} Rb8 {[%emt 0:00:59]} 15. Qc2 {[%emt 0:00:20]} Qa7 {[%emt 0:01:39]} 16. Kh1 {[%emt 0:03:23]} c4 {[%emt 0:04:14]} 17. Rae1 {[%emt 0:06:36]} Qb7 {[%emt 0:02:39]} 18. Bc1 {[%emt 0:03:10]} Nc5 {[%emt 0:01:24]} 19. Re2 {[%emt 0:01:38]} Qa7 {[%emt 0:04:11]} 20. Nd2 {[%emt 0:01:59]} Nd3 {[%emt 0:07:56]} 21. Nxc4 {[%emt 0:00:04]} Nb4 {[%emt 0:00:22]} 22. Be3 {[%emt 0:09:21]} Qc7 {[%emt 0:04:06]} 23. Qb3 {[%emt 0:02:18]} Nxa2 {[%emt 0:01:40]} 24. Nb5 {[%emt 0:00:11]} Qb7 {[%emt 0:03:43]} 25. Nca3 {[%emt 0:00:06]} Rxa3 {[%emt 0:00:20]} 26. bxa3 {[%emt 0:00:34]} Nc3 {[%emt 0:03:25]} 27. Qxc3 {[%emt 0:00:58]} Qxb5 {[%emt 0:00:56]} 28. Qc2 {[%emt 0:01:16]} Nxe4 {[%emt 0:01:02]} 29. Ba7 {[%emt 0:00:26] normal} 1-0

[Event "GER-ch Youth U14 2019"]
[Site "Willingen"]
[Date "2019.06.14"]
[Round "8.22"]
[White "Bornholdt, Joa Max"]
[Black "Straub, Benno"]
[Result "1-0"]
[ECO "A06"]
[WhiteElo "1754"]
[BlackElo "1490"]
[Annotator "NA"]
[PlyCount "53"]
[EventDate "2019.06.07"]
[EventType "swiss"]
[EventRounds "9"]
[EventCountry "GER"]
[SourceTitle "playchess.com"]
[Source "ChessBase"]
[SourceQuality "1"]
[TimeControl "40/5400+30:1800+30"]

1. Nf3 {[%emt 0:00:00]} d5 {[%emt 0:00:00]} 2. c4 {[%emt 0:00:00]} e6 {[%emt 0:00:00]} 3. d4 {[%emt 0:00:04]} Nf6 {[%emt 0:00:00]} 4. cxd5 {[%emt 0:00:11]} exd5 {[%emt 0:00:02]} 5. Bg5 {[%emt 0:00:05]} Be7 {[%emt 0:00:16]} 6. e3 {[%emt 0:00:17]} h6 {[%emt 0:00:21]} 7. Bh4 {[%emt 0:00:31]} O-O {[%emt 0:00:16]} 8. Nc3 {[%emt 0:00:05]} c6 {[%emt 0:00:25]} 9. Qc2 {[%emt 0:01:03]} Be6 {[%emt 0:00:41]} 10. Bd3 {[%emt 0:00:15]} Nbd7 {[%emt 0:00:32]} 11. O-O {[%emt 0:00:36]} Rc8 {[%emt 0:00:33]} 12. Rfd1 {[%emt 0:15:12]} Bg4 {[%emt 0:03:50]} 13. Be2 {[%emt 0:03:50]} Nh7 {[%emt 0:06:44]} 14. Bg3 {[%emt 0:04:27]} Ndf6 {[%emt 0:01:19]} 15. Rab1 {[%emt 0:08:18]} Bxf3 {[%emt 0:01:57]} 16. Bxf3 {[%emt 0:00:23]} Ng5 {[%emt 0:00:08]} 17. Be2 {[%emt 0:00:15]} Nfe4 {[%emt 0:00:49]} 18. Be5 {[%emt 0:05:09]} Qd7 {[%emt 0:07:46]} 19. f3 {[%emt 0:10:50]} Nf6 {[%emt 0:01:23]} 20. Bd3 {[%emt 0:05:16]} Rfe8 {[%emt 0:04:45]} 21. b4 {[%emt 0:07:58]} b5 {[%emt 0:00:27]} 22. Ne2 {[%emt 0:04:39]} Nh5 {[%emt 0:03:52]} 23. Bf5 {[%emt 0:05:56]} Ne6 {[%emt 0:00:50]} 24. g4 {[%emt 0:03:39]} Nf6 {[%emt 0:00:59]} 25. Nf4 {[%emt 0:01:45]} g5 {[%emt 0:04:03]} 26. Bxe6 {[%emt 0:01:53]} fxe6 {[%emt 0:00:14]} 27. Qg6+ {[%emt 0:00:26] normal} 1-0

[Event "GER-ch Youth U14 2019"]
[Site "Willingen"]
[Date "2019.06.15"]
[Round "9.2"]
[White "Lutz, Ruben"]
[Black "Bethke, Richard"]
[Result "0-1"]
[ECO "A46"]
[WhiteElo "2055"]
[BlackElo "2246"]
[Annotator "ChessBase"]
[PlyCount "108"]
[EventDate "2019.06.07"]
[EventType "swiss"]
[EventRounds "9"]
[EventCountry "GER"]
[SourceTitle "playchess.com"]
[Source "ChessBase"]
[SourceQuality "1"]
[TimeControl "40/5400+30:1800+30"]

1. d4 {[%emt 0:00:00]} Nf6 {[%emt 0:00:00]} 2. Nf3 {[%emt 0:00:00]} d5 {[%emt 0:00:06]} 3. c4 {[%emt 0:00:00]} e6 {[%emt 0:00:11]} 4. cxd5 {[%emt 0:00:03]} exd5 {[%emt 0:00:05]} 5. Nc3 {[%emt 0:00:14]} c6 {[%emt 0:00:12]} 6. Bg5 {[%emt 0:00:59]} Bf5 {[%emt 0:00:16]} 7. Qb3 {[%emt 0:01:38]} Qb6 {[%emt 0:01:31]} 8. Qxb6 {[%emt 0:03:01]} axb6 {[%emt 0:00:04]} 9. Bxf6 {[%emt 0:00:05]} gxf6 {[%emt 0:00:06]} 10. e3 {[%emt 0:01:20]} b5 {[%emt 0:00:32]} 11. Kd2 {[%emt 0:17:55]} Nd7 {[%emt 0:03:02]} 12. Bd3 {[%emt 0:04:29]} Bg6 {[%emt 0:01:19]} 13. Nh4 {[%emt 0:15:07]} Nb6 {[%emt 0:01:15]} 14. Nf5 {[%emt 0:24:33]} Nc4+ {[%emt 0:05:33]} 15. Kc2 {[%emt 0:00:17]} b4 {[%emt 0:01:17]} 16. Ne2 {[%emt 0:01:31]} b6 {[%emt 0:01:59]} 17. Neg3 {[%emt 0:03:19]} h5 {[%emt 0:02:18]} 18. h4 {[%emt 0:05:12]} Bd6 {[%emt 0:01:11]} 19. b3 {[%emt 0:08:14]} Bxg3 {[%emt 0:01:18]} 20. Nxg3 {[%emt 0:00:54]} Nd6 {[%emt 0:00:54]} 21. Rhc1 {[%emt 0:01:34]} Kd7 {[%emt 0:01:07]} 22. Bxg6 {[%emt 0:03:51]} fxg6 {[%emt 0:00:05]} 23. Kb2 {[%emt 0:00:05]} Ra3 {[%emt 0:00:56]} 24. Rc2 {[%emt 0:00:47]} Rha8 {[%emt 0:00:46]} 25. Rcc1 {[%emt 0:03:32]} R3a5 {[%emt 0:03:40]} 26. Rd1 {[%emt 0:00:59]} Ke6 {[%emt 0:01:04]} 27. Rd2 {[%emt 0:02:16]} c5 {[%emt 0:02:07]} 28. dxc5 {[%emt 0:00:46]} bxc5 {[%emt 0:00:05]} 29. Ne2 {[%emt 0:00:44]} g5 {[%emt 0:00:31]} 30. hxg5 {[%emt 0:00:12]} fxg5 {[%emt 0:00:05]} 31. Rc2 {[%emt 0:00:43]} h4 {[%emt 0:01:24]} 32. a4 {[%emt 0:01:03]} bxa3+ {[%emt 0:00:05]} 33. Ka2 {[%emt 0:00:02]} Rf8 {[%emt 0:01:54]} 34. Rf1 {[%emt 0:00:54]} Nf5 {[%emt 0:03:32]} 35. Rfc1 {[%emt 0:00:11]} Kd6 {[%emt 0:00:51]} 36. b4 {[%emt 0:00:52]} cxb4 {[%emt 0:00:09]} 37. Rc6+ {[%emt 0:00:10]} Ke5 {[%emt 0:01:07]} 38. Rb6 {[%emt 0:00:46]} Nxe3 {[%emt 0:03:16]} 39. Rcc6 {[%emt 0:00:40]} Nc4 {[%emt 0:01:59]} 40. Re6+ {[%emt 0:00:31]} Kf5 {[%emt 0:00:06]} 41. f3 {[%emt 0:06:19]} b3+ {[%emt 0:01:49]} 42. Kxb3 {[%emt 0:01:57]} g4 {[%emt 0:02:45]} 43. Nd4+ {[%emt 0:05:52]} Kg5 {[%emt 0:00:35]} 44. Rg6+ {[%emt 0:02:12]} Kf4 {[%emt 0:00:17]} 45. Rbe6 {[%emt 0:11:52]} gxf3 {[%emt 0:01:01]} 46. gxf3 {[%emt 0:00:08]} Nd2+ {[%emt 0:02:18]} 47. Kb4 {[%emt 0:02:03]} Nxf3 {[%emt 0:00:09]} 48. Kxa5 {[%emt 0:01:41]} Nxd4 {[%emt 0:00:26]} 49. Ra6 {[%emt 0:02:12]} Rb8 {[%emt 0:01:00]} 50. Rgb6 {[%emt 0:00:42]} a2 {[%emt 0:00:42]} 51. Rxb8 {[%emt 0:00:31]} a1=Q+ {[%emt 0:00:07]} 52. Kb6 {[%emt 0:00:02]} Qc3 {[%emt 0:00:14]} 53. Rf8+ {[%emt 0:00:17]} Ke3 {[%emt 0:00:07]} 54. Re8+ {[%emt 0:00:08]} Kd3 {[%emt 0:00:05] normal} 0-1

[Event "GER-ch Youth U14 2019"]
[Site "Willingen"]
[Date "2019.06.15"]
[Round "9.3"]
[White "Weihrauch, Jakob"]
[Black "Pubantz, Jan"]
[Result "1/2-1/2"]
[ECO "B91"]
[WhiteElo "2158"]
[BlackElo "2192"]
[Annotator "ChessBase"]
[PlyCount "60"]
[EventDate "2019.06.07"]
[EventType "swiss"]
[EventRounds "9"]
[EventCountry "GER"]
[SourceTitle "playchess.com"]
[Source "ChessBase"]
[SourceQuality "1"]
[TimeControl "40/5400+30:1800+30"]

1. e4 {[%emt 0:00:00]} c5 {[%emt 0:00:00]} 2. Nf3 {[%emt 0:00:00]} d6 {[%emt 0:00:00]} 3. d4 {[%emt 0:00:00]} cxd4 {[%emt 0:00:00]} 4. Nxd4 {[%emt 0:00:00]} Nf6 {[%emt 0:00:00]} 5. Nc3 {[%emt 0:00:00]} a6 {[%emt 0:00:00]} 6. g3 {[%emt 0:00:09]} e5 {[%emt 0:00:12]} 7. Nde2 {[%emt 0:00:05]} Be7 {[%emt 0:00:41]} 8. Bg2 {[%emt 0:00:32]} b5 {[%emt 0:03:15]} 9. Nd5 {[%emt 0:00:44]} Nbd7 {[%emt 0:01:02]} 10. Nec3 {[%emt 0:01:15]} Nb6 {[%emt 0:01:32]} 11. Nxb6 {[%emt 0:08:17]} Qxb6 {[%emt 0:00:09]} 12. Nd5 {[%emt 0:00:27]} Nxd5 {[%emt 0:04:38]} 13. Qxd5 {[%emt 0:00:03]} Qb7 {[%emt 0:09:01]} 14. Qxb7 {[%emt 0:03:02]} Bxb7 {[%emt 0:00:05]} 15. O-O {[%emt 0:00:08]} Rc8 {[%emt 0:01:22]} 16. c3 {[%emt 0:00:27]} O-O {[%emt 0:02:48]} 17. Bd2 {[%emt 0:08:50]} Rfd8 {[%emt 0:14:21]} 18. a4 {[%emt 0:03:22]} d5 {[%emt 0:16:10]} 19. axb5 {[%emt 0:01:21]} axb5 {[%emt 0:00:25]} 20. exd5 {[%emt 0:09:52]} Bxd5 {[%emt 0:02:39]} 21. Be3 {[%emt 0:03:12]} Bb3 {[%emt 0:14:39]} 22. Ra5 {[%emt 0:06:26]} Bc4 {[%emt 0:04:25]} 23. Re1 {[%emt 0:00:53]} Bc5 {[%emt 0:04:21]} 24. Bxc5 {[%emt 0:04:28]} Rxc5 {[%emt 0:00:06]} 25. Bf1 {[%emt 0:01:01]} Bxf1 {[%emt 0:02:26]} 26. Kxf1 {[%emt 0:00:06]} f6 {[%emt 0:02:28]} 27. Ra7 {[%emt 0:12:55]} h5 {[%emt 0:06:01]} 28. h4 {[%emt 0:00:53]} Rd3 {[%emt 0:03:00]} 29. Rb7 {[%emt 0:02:59]} Rd2 {[%emt 0:02:23]} 30. Re2 {[%emt 0:00:27]} Rd6 {[%emt 0:01:08] normal} 1/2-1/2

[Event "GER-ch Youth U14 2019"]
[Site "Willingen"]
[Date "2019.06.15"]
[Round "9.4"]
[White "Bui, Bao Anh Le"]
[Black "Colbow, Collin"]
[Result "1/2-1/2"]
[ECO "B90"]
[WhiteElo "2065"]
[BlackElo "2169"]
[Annotator "ChessBase"]
[PlyCount "115"]
[EventDate "2019.06.07"]
[EventType "swiss"]
[EventRounds "9"]
[EventCountry "GER"]
[SourceTitle "playchess.com"]
[Source "ChessBase"]
[SourceQuality "1"]
[TimeControl "40/5400+30:1800+30"]

1. e4 {[%emt 0:00:11]} c5 {[%emt 0:00:00]} 2. Nf3 {[%emt 0:00:29]} d6 {[%emt 0:00:00]} 3. d4 {[%emt 0:00:42]} cxd4 {[%emt 0:00:00]} 4. Nxd4 {[%emt 0:00:08]} Nf6 {[%emt 0:00:00]} 5. Nc3 {[%emt 0:00:43]} a6 {[%emt 0:00:00]} 6. Be3 {[%emt 0:00:29]} e5 {[%emt 0:00:08]} 7. Nb3 {[%emt 0:00:31]} Be6 {[%emt 0:01:42]} 8. f3 {[%emt 0:01:00]} Be7 {[%emt 0:00:30]} 9. Qd2 {[%emt 0:00:21]} O-O {[%emt 0:00:13]} 10. O-O-O {[%emt 0:00:09]} Nbd7 {[%emt 0:00:33]} 11. g4 {[%emt 0:00:33]} b5 {[%emt 0:00:07]} 12. Rg1 {[%emt 0:00:08]} Nb6 {[%emt 0:01:46]} 13. Na5 {[%emt 0:00:53]} Rc8 {[%emt 0:02:48]} 14. g5 {[%emt 0:03:04]} Nh5 {[%emt 0:01:20]} 15. Nd5 {[%emt 0:00:32]} Nxd5 {[%emt 0:03:01]} 16. exd5 {[%emt 0:00:05]} Bxd5 {[%emt 0:00:52]} 17. Qxd5 {[%emt 0:00:03]} Qxa5 {[%emt 0:00:10]} 18. Rg4 {[%emt 0:00:02]} g6 {[%emt 0:08:56]} 19. h4 {[%emt 0:01:28]} Kh8 {[%emt 0:05:35]} 20. f4 {[%emt 0:25:39]} Qa4 {[%emt 0:12:31]} 21. Bd3 {[%emt 0:10:55]} f5 {[%emt 0:03:13]} 22. fxe5 {[%emt 0:08:23]} fxg4 {[%emt 0:19:35]} 23. exd6 {[%emt 0:00:25]} Bxd6 {[%emt 0:17:02]} 24. Qxd6 {[%emt 0:03:26]} Qxa2 25. Bd4+ {[%emt 0:00:37]} Ng7 {[%emt 0:04:58]} 26. c4 {[%emt 0:05:48]} Rxc4+ {[%emt 0:04:47]} 27. Bxc4 {[%emt 0:00:16]} Qxc4+ {[%emt 0:00:06]} 28. Kb1 {[%emt 0:00:04]} Kg8 {[%emt 0:00:33]} 29. Bc3 {[%emt 0:16:36]} Qe4+ {[%emt 0:02:06]} 30. Ka1 {[%emt 0:00:49]} Nf5 {[%emt 0:00:52]} 31. Qd7 {[%emt 0:01:04]} Qa4+ {[%emt 0:01:44]} 32. Kb1 {[%emt 0:00:07]} Qe4+ {[%emt 0:00:06]} 33. Ka1 {[%emt 0:00:05]} g3 {[%emt 0:01:22]} 34. Re1 {[%emt 0:01:03]} Qa4+ {[%emt 0:01:57]} 35. Kb1 {[%emt 0:00:06]} Qc4 {[%emt 0:00:20]} 36. Qb7 {[%emt 0:02:20]} a5 {[%emt 0:04:47]} 37. Re4 {[%emt 0:01:42]} Qb3 {[%emt 0:02:27]} 38. Re1 {[%emt 0:03:45]} b4 {[%emt 0:01:46]} 39. Bf6 {[%emt 0:02:27]} a4 {[%emt 0:00:38]} 40. h5 {[%emt 0:01:20]} Qd3+ {[%emt 0:00:37]} 41. Ka1 {[%emt 0:30:10]} gxh5 {[%emt 0:04:53]} 42. Qc6 Qb3 {[%emt 0:14:07]} 43. Qd7 {[%emt 0:00:00]} a3 {[%emt 0:01:15]} 44. Re8 {[%emt 0:00:00]} g2 {[%emt 0:04:57]} 45. Rxf8+ {[%emt 0:00:00]} Kxf8 {[%emt 0:00:01]} 46. Qc8+ {[%emt 0:00:00]} Kf7 {[%emt 0:00:03]} 47. Qb7+ {[%emt 0:00:00]} Kg6 {[%emt 0:00:15]} 48. Qxg2 {[%emt 0:00:00]} axb2+ {[%emt 0:00:27]} 49. Bxb2 {[%emt 0:00:00]} Qd1+ {[%emt 0:01:08]} 50. Ka2 {[%emt 0:00:00]} Qa4+ {[%emt 0:00:03]} 51. Kb1 {[%emt 0:00:00]} Qd1+ {[%emt 0:00:00]} 52. Ka2 {[%emt 0:00:00]} Qa4+ {[%emt 0:00:31]} 53. Kb1 {[%emt 0:00:00]} b3 {[%emt 0:00:28]} 54. Qd5 {[%emt 0:00:00]} Qa2+ {[%emt 0:03:46]} 55. Kc1 {[%emt 0:00:00]} Kxg5 {[%emt 0:00:27]} 56. Qd2+ {[%emt 0:00:00]} Kg4 {[%emt 0:01:18]} 57. Qe2+ {[%emt 0:00:00]} Kf4 {[%emt 0:00:19]} 58. Qf2+ {[%emt 0:00:00] normal} 1/2-1/2

[Event "GER-ch Youth U14 2019"]
[Site "Willingen"]
[Date "2019.06.15"]
[Round "9.5"]
[White "Gallasch, Jonas"]
[Black "Laux, Dominik"]
[Result "0-1"]
[ECO "D10"]
[WhiteElo "2137"]
[BlackElo "2061"]
[Annotator "ChessBase"]
[PlyCount "86"]
[EventDate "2019.06.07"]
[EventType "swiss"]
[EventRounds "9"]
[EventCountry "GER"]
[SourceTitle "playchess.com"]
[Source "ChessBase"]
[SourceQuality "1"]
[TimeControl "40/5400+30:1800+30"]

1. d4 {[%emt 0:00:00]} d5 {[%emt 0:00:00]} 2. c4 {[%emt 0:00:00]} c6 {[%emt 0:00:00]} 3. cxd5 {[%emt 0:00:00]} cxd5 {[%emt 0:00:00]} 4. Bf4 {[%emt 0:00:00]} Nf6 {[%emt 0:00:44]} 5. Nc3 {[%emt 0:00:09]} Nc6 {[%emt 0:00:30]} 6. e3 {[%emt 0:00:09]} a6 {[%emt 0:00:22]} 7. Rc1 {[%emt 0:00:22]} Bf5 {[%emt 0:01:02]} 8. Nf3 {[%emt 0:01:46]} e6 {[%emt 0:00:57]} 9. Qb3 {[%emt 0:05:06]} Ra7 {[%emt 0:00:41]} 10. Be2 {[%emt 0:01:18]} Be7 {[%emt 0:00:57]} 11. O-O {[%emt 0:04:18]} O-O {[%emt 0:01:03]} 12. Na4 {[%emt 0:19:10]} Nd7 {[%emt 0:04:43]} 13. Nc5 {[%emt 0:07:45]} Nxc5 {[%emt 0:12:37]} 14. dxc5 {[%emt 0:00:28]} Bg4 {[%emt 0:02:35]} 15. h3 {[%emt 0:10:47]} Bxf3 {[%emt 0:02:40]} 16. Bxf3 {[%emt 0:02:33]} Qa5 {[%emt 0:04:34]} 17. Qb6 {[%emt 0:17:07]} Qxa2 {[%emt 0:16:19]} 18. Ra1 {[%emt 0:06:28]} Qc4 {[%emt 0:02:02]} 19. Rfc1 {[%emt 0:00:07]} Qb4 {[%emt 0:03:17]} 20. Be2 {[%emt 0:03:03]} Rc8 {[%emt 0:04:42]} 21. Bd6 {[%emt 0:03:13]} Kf8 {[%emt 0:09:56]} 22. Bxa6 {[%emt 0:07:01]} bxa6 {[%emt 0:03:22]} 23. Rxa6 {[%emt 0:01:18]} Qxb6 {[%emt 0:08:53]} 24. Rxb6 {[%emt 0:01:32]} Ke8 {[%emt 0:08:05]} 25. Bxe7 {[%emt 0:01:02]} Kxe7 {[%emt 0:00:26]} 26. b4 {[%emt 0:00:07]} Ne5 {[%emt 0:00:50]} 27. b5 {[%emt 0:01:28]} Nc4 {[%emt 0:02:30]} 28. Ra6 {[%emt 0:00:47]} Rxa6 {[%emt 0:00:38]} 29. bxa6 {[%emt 0:00:06]} Ra8 {[%emt 0:02:42]} 30. Rb1 {[%emt 0:00:29]} Rxa6 {[%emt 0:00:35]} 31. Rb7+ {[%emt 0:00:07]} Kf6 {[%emt 0:00:32]} 32. Rc7 {[%emt 0:00:22]} Na5 {[%emt 0:00:37]} 33. f4 {[%emt 0:00:24]} Rc6 {[%emt 0:01:31]} 34. Ra7 {[%emt 0:00:09]} Rxc5 {[%emt 0:00:09]} 35. g4 {[%emt 0:00:13]} Nc4 {[%emt 0:00:40]} 36. Kf2 {[%emt 0:00:05]} Ra5 {[%emt 0:00:41]} 37. Rc7 {[%emt 0:00:06]} Ra2+ {[%emt 0:01:37]} 38. Kf3 {[%emt 0:00:22]} Ra3 {[%emt 0:00:25]} 39. g5+ {[%emt 0:00:21]} Kg6 {[%emt 0:00:23]} 40. h4 {[%emt 0:00:15]} Nxe3 {[%emt 0:01:22]} 41. h5+ {[%emt 0:30:14]} Kxh5 {[%emt 0:30:10]} 42. Rxf7 {[%emt 0:00:06]} Nf5+ {[%emt 0:00:06]} 43. Kf2 {[%emt 0:00:08]} Kg4 {[%emt 0:00:09] normal} 0-1

[Event "GER-ch Youth U14 2019"]
[Site "Willingen"]
[Date "2019.06.15"]
[Round "9.6"]
[White "Schubert, Nikita"]
[Black "Eilenberg, Jonas"]
[Result "1/2-1/2"]
[ECO "D30"]
[WhiteElo "1806"]
[BlackElo "1934"]
[Annotator "NA"]
[PlyCount "88"]
[EventDate "2019.06.07"]
[EventType "swiss"]
[EventRounds "9"]
[EventCountry "GER"]
[SourceTitle "playchess.com"]
[Source "ChessBase"]
[SourceQuality "1"]
[TimeControl "40/5400+30:1800+30"]

1. d4 {[%emt 0:00:00]} d5 {[%emt 0:00:00]} 2. c4 {[%emt 0:00:00]} e6 {[%emt 0:00:00]} 3. Nf3 {[%emt 0:00:00]} c6 {[%emt 0:00:07]} 4. g3 {[%emt 0:00:00]} Nf6 {[%emt 0:00:15]} 5. Bg2 {[%emt 0:00:06]} dxc4 {[%emt 0:00:04]} 6. Ne5 {[%emt 0:00:10]} c5 {[%emt 0:00:06] unterminated} 7. Qa4+ {[%emt 0:09:32]} Nbd7 $11 {[%emt 0:02:22]} 8. Nxc4 {[%emt 0:25:17]} Be7 {[%emt 0:11:22]} 9. dxc5 {[%emt 0:07:04]} Bxc5 {[%emt 0:01:33]} 10. O-O {[%emt 0:01:57]} O-O {[%emt 0:01:05]} 11. Bf4 {[%emt 0:09:39]} Nb6 {[%emt 0:16:05]} 12. Qb3 {[%emt 0:02:21]} Nbd5 {[%emt 0:09:11]} 13. Rd1 {[%emt 0:04:01]} Qe7 {[%emt 0:05:45]} 14. Be5 {[%emt 0:07:03]} Bd7 {[%emt 0:14:04]} 15. e4 {[%emt 0:11:13]} Nb6 {[%emt 0:04:19]} 16. Nxb6 {[%emt 0:10:03]} axb6 {[%emt 0:01:35]} 17. Nc3 {[%emt 0:02:20]} Ng4 {[%emt 0:03:58]} 18. Bd4 {[%emt 0:00:38]} Bc6 {[%emt 0:03:49]} 19. h3 {[%emt 0:01:57]} Nf6 {[%emt 0:07:18]} 20. Qc2 {[%emt 0:01:52]} Rfd8 {[%emt 0:02:04]} 21. Be5 {[%emt 0:00:34]} b5 {[%emt 0:03:27]} 22. a3 {[%emt 0:01:11]} b4 {[%emt 0:01:49]} 23. axb4 {[%emt 0:01:40]} Rxa1 {[%emt 0:00:22]} 24. Rxa1 {[%emt 0:00:10]} Bxb4 {[%emt 0:00:02]} 25. Bf4 {[%emt 0:01:19]} h6 {[%emt 0:04:34]} 26. Be3 {[%emt 0:00:23]} Bc5 {[%emt 0:01:23]} 27. Bf4 Nh5 {[%emt 0:01:20]} 28. Qc1 {[%emt 0:01:41]} Nxf4 {[%emt 0:00:35]} 29. Qxf4 {[%emt 0:00:24]} Qf6 {[%emt 0:01:06]} 30. Qxf6 {[%emt 0:01:12]} gxf6 {[%emt 0:00:05]} 31. Rd1 {[%emt 0:00:28]} Rxd1+ {[%emt 0:01:21]} 32. Nxd1 {[%emt 0:00:02]} Bd4 {[%emt 0:00:14]} 33. Kf1 {[%emt 0:01:13]} Kf8 {[%emt 0:03:09]} 34. f3 {[%emt 0:00:38]} Ke7 {[%emt 0:00:59]} 35. Nc3 {[%emt 0:00:46]} b5 {[%emt 0:00:19]} 36. Ke2 {[%emt 0:00:23]} b4 {[%emt 0:00:08]} 37. Nd1 {[%emt 0:00:16]} Ba4 {[%emt 0:01:05]} 38. Kd3 {[%emt 0:00:31]} e5 {[%emt 0:00:34]} 39. Kd2 {[%emt 0:00:38]} Kd6 {[%emt 0:01:06]} 40. Bf1 {[%emt 0:00:34]} Bxd1 {[%emt 0:00:41]} 41. Kxd1 {[%emt 0:03:00]} Bxb2 {[%emt 0:00:02]} 42. Kc2 {[%emt 0:07:54]} Bc3 {[%emt 0:00:10]} 43. Bc4 {[%emt 0:00:36]} Kc5 {[%emt 0:00:43]} 44. Kd3 {[%emt 0:00:18]} Be1 {[%emt 0:01:19] normal} 1/2-1/2

[Event "GER-ch Youth U14 2019"]
[Site "Willingen"]
[Date "2019.06.15"]
[Round "9.7"]
[White "Hetzner, Hannes"]
[Black "Schulemann, Gero"]
[Result "1-0"]
[ECO "B41"]
[WhiteElo "1996"]
[BlackElo "1862"]
[Annotator "NA"]
[PlyCount "48"]
[EventDate "2019.06.07"]
[EventType "swiss"]
[EventRounds "9"]
[EventCountry "GER"]
[SourceTitle "playchess.com"]
[Source "ChessBase"]
[SourceQuality "1"]
[TimeControl "40/5400+30:1800+30"]

1. e4 {[%emt 0:00:00]} c5 {[%emt 0:00:00]} 2. Nf3 {[%emt 0:00:00]} e6 {[%emt 0:00:00]} 3. d4 {[%emt 0:00:00]} cxd4 {[%emt 0:00:00]} 4. Nxd4 {[%emt 0:00:06]} a6 {[%emt 0:00:00]} 5. c4 {[%emt 0:00:09]} Nf6 {[%emt 0:01:07]} 6. Nc3 {[%emt 0:00:17]} Qc7 {[%emt 0:00:11]} 7. Be2 {[%emt 0:00:25]} Bb4 {[%emt 0:04:08]} 8. Qd3 {[%emt 0:01:47] unterminated} O-O $14 {[%emt 0:11:07]} 9. O-O {[%emt 0:02:01]} Nc6 {[%emt 0:01:10]} 10. Nxc6 {[%emt 0:09:24]} dxc6 {[%emt 0:00:34]} 11. a3 {[%emt 0:11:16]} Bd6 {[%emt 0:05:46]} 12. f4 {[%emt 0:07:28]} Rd8 {[%emt 0:01:28]} 13. Qf3 {[%emt 0:02:59]} e5 {[%emt 0:01:52]} 14. f5 {[%emt 0:00:51]} Bf8 {[%emt 0:02:14]} 15. Be3 {[%emt 0:02:16]} Bd7 {[%emt 0:03:00]} 16. c5 {[%emt 0:02:24]} Be8 {[%emt 0:03:00]} 17. Bc4 {[%emt 0:05:42]} Nd7 {[%emt 0:09:08]} 18. Na4 {[%emt 0:02:33]} Qa5 {[%emt 0:02:06]} 19. Nb6 {[%emt 0:01:20]} Nxb6 {[%emt 0:02:00]} 20. cxb6 {[%emt 0:06:33]} c5 {[%emt 0:02:38]} 21. f6 {[%emt 0:01:45]} g6 {[%emt 0:05:07]} 22. Qh3 {[%emt 0:09:22]} h5 {[%emt 0:07:06]} 23. Qh4 {[%emt 0:03:23]} Qa4 {[%emt 0:02:30]} 24. b3 {[%emt 0:04:53]} Qc6 {[%emt 0:00:07] normal} 1-0